fUSD/lending_fUSD_20260621
["ID","MTS","AMOUNT","RATE_DAILY","PERIOD"]
[425872235,1782013833000,-150.0,0.0001336,2]
[425872230,1782013833000,-151.0,0.00013325,2]
[425872232,1782013833000,-151.0,0.00013325,2]
[425872215,1782013833000,-1000.0,0.00013199,2]
[425872228,1782013833000,-151.0,0.00013325,2]
[425872217,1782013833000,-1354.27468077,0.00013201,2]
[425872227,1782013833000,-150.0,0.00013325,2]
[425872234,1782013833000,-152.0,0.00013326,2]
[425872218,1782013833000,-150.0,0.00013229,2]
[425872220,1782013833000,-151.0,0.00013324,2]
[425872226,1782013833000,-153.0,0.00013325,2]
[425872216,1782013833000,-1000.0,0.00013199,2]
[425872224,1782013833000,-151.0,0.00013325,2]
[425872222,1782013833000,-151.0,0.00013325,2]
[425872225,1782013833000,-151.0,0.00013325,2]
[425872221,1782013833000,-151.0,0.00013325,2]
[425872223,1782013833000,-150.0,0.00013325,2]
[425872229,1782013833000,-151.0,0.00013325,2]
[425872231,1782013833000,-150.0,0.00013325,2]
[425872219,1782013833000,-163.77,0.00013324,2]
[425872261,1782013840000,-500.0,0.00013698,2]
[425872264,1782013840000,-500.0,0.00013698,2]
[425872256,1782013840000,-500.0,0.00013698,2]
[425872254,1782013840000,-300.0,0.000136,4]
[425872255,1782013840000,-890.2,0.00013641,2]
[425872253,1782013840000,-4053.82608008,0.00013596,2]
[425872260,1782013840000,-500.0,0.00013698,2]
[425872252,1782013840000,-9577.23577149,0.00013549,2]
[425872265,1782013840000,-500.0,0.00013698,2]
[425872259,1782013840000,-500.0,0.00013698,2]
[425872258,1782013840000,-500.0,0.00013698,2]
[425872257,1782013840000,-333.69862914,0.00013698,2]
[425872270,1782013840000,-511.68919081,0.00013698,2]
[425872268,1782013840000,-500.0,0.00013698,2]
[425872269,1782013840000,-500.0,0.00013698,2]
[425872271,1782013840000,-500.0,0.00013698,2]
[425872263,1782013840000,-500.0,0.00013698,2]
[425872267,1782013840000,-500.0,0.00013698,2]
[425872262,1782013840000,-500.0,0.00013698,2]
[425872266,1782013840000,-500.0,0.00013698,2]
[425872312,1782013841000,-500.0,0.00013698,2]
[425872313,1782013841000,-500.0,0.00013698,2]
[425872308,1782013841000,-500.0,0.00013698,2]
[425872309,1782013841000,-500.0,0.00013698,2]
[425872307,1782013841000,-500.0,0.00013698,2]
[425872310,1782013841000,-500.0,0.00013698,2]
[425872334,1782013841000,-500.0,0.00013698,2]
[425872311,1782013841000,-500.0,0.00013698,2]
[425872306,1782013841000,-500.0,0.00013698,2]
[425872314,1782013841000,-500.0,0.00013698,2]
[425872305,1782013841000,-500.0,0.00013698,2]
[425872315,1782013841000,-500.0,0.00013698,2]
[425872317,1782013841000,-500.0,0.00013698,2]
[425872319,1782013841000,-500.0,0.00013698,2]
[425872318,1782013841000,-500.0,0.00013698,2]
[425872327,1782013841000,-500.0,0.00013698,2]
[425872320,1782013841000,-500.0,0.00013698,2]
[425872322,1782013841000,-500.0,0.00013698,2]
[425872324,1782013841000,-500.0,0.00013698,2]
[425872326,1782013841000,-528.16524823,0.00013698,2]
[425872321,1782013841000,-500.0,0.00013698,2]
[425872323,1782013841000,-500.0,0.00013698,2]
[425872325,1782013841000,-500.0,0.00013698,2]
[425872328,1782013841000,-500.0,0.00013698,2]
[425872330,1782013841000,-500.0,0.00013698,2]
[425872304,1782013841000,-500.0,0.00013698,2]
[425872316,1782013841000,-500.0,0.00013698,2]
[425872297,1782013841000,-500.0,0.00013698,2]
[425872275,1782013841000,-500.0,0.00013698,2]
[425872295,1782013841000,-500.0,0.00013698,2]
[425872332,1782013841000,-500.0,0.00013698,2]
[425872279,1782013841000,-500.0,0.00013698,2]
[425872272,1782013841000,-500.0,0.00013698,2]
[425872273,1782013841000,-505.0036835,0.00013698,2]
[425872276,1782013841000,-500.0,0.00013698,2]
[425872274,1782013841000,-500.0,0.00013698,2]
[425872277,1782013841000,-500.0,0.00013698,2]
[425872278,1782013841000,-500.0,0.00013698,2]
[425872281,1782013841000,-500.0,0.00013698,2]
[425872280,1782013841000,-500.0,0.00013698,2]
[425872291,1782013841000,-500.0,0.00013698,2]
[425872282,1782013841000,-500.0,0.00013698,2]
[425872283,1782013841000,-500.0,0.00013698,2]
[425872299,1782013841000,-500.0,0.00013698,2]
[425872289,1782013841000,-500.0,0.00013698,2]
[425872290,1782013841000,-500.0,0.00013698,2]
[425872284,1782013841000,-500.0,0.00013698,2]
[425872288,1782013841000,-500.0,0.00013698,2]
[425872285,1782013841000,-500.0,0.00013698,2]
[425872286,1782013841000,-500.0,0.00013698,2]
[425872293,1782013841000,-500.0,0.00013698,2]
[425872292,1782013841000,-500.0,0.00013698,2]
[425872294,1782013841000,-500.0,0.00013698,2]
[425872298,1782013841000,-500.0,0.00013698,2]
[425872302,1782013841000,-500.0,0.00013698,2]
[425872296,1782013841000,-500.0,0.00013698,2]
[425872300,1782013841000,-500.0,0.00013698,2]
[425872301,1782013841000,-488.37151628,0.00013698,2]
[425872287,1782013841000,-500.0,0.00013698,2]
[425872340,1782013841000,-500.0,0.00013698,2]
[425872303,1782013841000,-500.0,0.00013698,2]
[425872341,1782013841000,-500.0,0.00013698,2]
[425872367,1782013841000,-500.0,0.00013698,2]
[425872373,1782013841000,-500.0,0.00013698,2]
[425872385,1782013841000,-751.39451437,0.00013779,2]
[425872383,1782013841000,-216.32317309,0.00013709,2]
[425872384,1782013841000,-1065.68,0.00013729,2]
[425872372,1782013841000,-500.0,0.00013698,2]
[425872376,1782013841000,-500.0,0.00013698,2]
[425872374,1782013841000,-500.0,0.00013698,2]
[425872375,1782013841000,-500.0,0.00013698,2]
[425872379,1782013841000,-200.0,0.00013699,2]
[425872377,1782013841000,-638.82549896,0.00013698,2]
[425872382,1782013841000,-700.0,0.000137,5]
[425872378,1782013841000,-2500.0,0.00013699,2]
[425872381,1782013841000,-361.01,0.00013699,2]
[425872386,1782013841000,-1000.0,0.000138,5]
[425872388,1782013841000,-166.66,0.00013837,2]
[425872394,1782013841000,-250.0,0.00014,2]
[425872396,1782013841000,-322.33937617,0.00014055,7]
[425872395,1782013841000,-728.023979,0.00014,2]
[425872392,1782013841000,-211.57,0.00013986,2]
[425872391,1782013841000,-4000.0,0.00013917,2]
[425872387,1782013841000,-2750.24,0.000138,2]
[425872397,1782013841000,-166.66,0.00014167,2]
[425872389,1782013841000,-1400.0,0.000139,5]
[425872390,1782013841000,-581.92,0.00013902,2]
[425872393,1782013841000,-420.29,0.00013986,2]
[425872398,1782013841000,-4000.0,0.00014265,2]
[425872364,1782013841000,-500.0,0.00013698,2]
[425872359,1782013841000,-500.0,0.00013698,2]
[425872399,1782013841000,-166.66,0.00014294,2]
[425872366,1782013841000,-500.0,0.00013698,2]
[425872371,1782013841000,-500.0,0.00013698,2]
[425872338,1782013841000,-500.0,0.00013698,2]
[425872343,1782013841000,-500.0,0.00013698,2]
[425872335,1782013841000,-500.0,0.00013698,2]
[425872342,1782013841000,-500.0,0.00013698,2]
[425872337,1782013841000,-500.0,0.00013698,2]
[425872345,1782013841000,-500.0,0.00013698,2]
[425872356,1782013841000,-500.0,0.00013698,2]
[425872357,1782013841000,-500.0,0.00013698,2]
[425872346,1782013841000,-500.0,0.00013698,2]
[425872349,1782013841000,-500.0,0.00013698,2]
[425872344,1782013841000,-500.0,0.00013698,2]
[425872355,1782013841000,-500.0,0.00013698,2]
[425872350,1782013841000,-500.0,0.00013698,2]
[425872336,1782013841000,-500.0,0.00013698,2]
[425872348,1782013841000,-500.0,0.00013698,2]
[425872353,1782013841000,-500.0,0.00013698,2]
[425872370,1782013841000,-500.0,0.00013698,2]
[425872365,1782013841000,-500.0,0.00013698,2]
[425872368,1782013841000,-500.0,0.00013698,2]
[425872362,1782013841000,-234.8352516,0.00013698,2]
[425872369,1782013841000,-500.0,0.00013698,2]
[425872361,1782013841000,-500.0,0.00013698,2]
[425872352,1782013841000,-500.0,0.00013698,2]
[425872360,1782013841000,-500.0,0.00013698,2]
[425872363,1782013841000,-620.88002704,0.00013698,2]
[425872351,1782013841000,-500.0,0.00013698,2]
[425872358,1782013841000,-500.0,0.00013698,2]
[425872354,1782013841000,-500.0,0.00013698,2]
[425872434,1782013842000,-314.99857486,0.00016,2]
[425872441,1782013842000,-1065.68,0.00017161,2]
[425872430,1782013842000,-166.66,0.00015658,2]
[425872431,1782013842000,-166.66,0.00015664,2]
[425872429,1782013842000,-187.0,0.00015505,2]
[425872437,1782013842000,-553.65,0.00016438,2]
[425872438,1782013842000,-1500.0,0.00016716,2]
[425872435,1782013842000,-166.66,0.00016121,2]
[425872436,1782013842000,-613.45,0.00016438,2]
[425872439,1782013842000,-2003.92791393,0.00016999,2]
[425872433,1782013842000,-300.0,0.00016,2]
[425872445,1782013842000,-363.9140262,0.00017812,2]
[425872440,1782013842000,-501.153965,0.00016999,2]
[425872443,1782013842000,-1555.5,0.00017264,2]
[425872448,1782013842000,-1065.68,0.00018877,2]
[425872444,1782013842000,-250.0,0.00017307,2]
[425872432,1782013842000,-212037.49,0.00015925,2]
[425872442,1782013842000,-3123.96602854,0.00017207,2]
[425872446,1782013842000,-199.5,0.00018099,2]
[425872447,1782013842000,-10439.89,0.0001872,2]
[425872450,1782013842000,-3000.0,0.00019178,2]
[425872449,1782013842000,-3123.96602854,0.00019039,2]
[425872452,1782013842000,-773.0,0.0002,2]
[425872454,1782013842000,-274.0,0.0002,2]
[425872463,1782013842000,-193.0,0.00021,2]
[425872451,1782013842000,-1409.0,0.0002,2]
[425872428,1782013842000,-1065.68,0.00015445,2]
[425872423,1782013842000,-166.66,0.00015208,2]
[425872426,1782013842000,-166.66,0.0001536,2]
[425872455,1782013842000,-638.43,0.0002,2]
[425872401,1782013842000,-600.0,0.00014408,2]
[425872400,1782013842000,-255.0,0.00014304,2]
[425872404,1782013842000,-300.39786889,0.00014408,2]
[425872407,1782013842000,-503.10118996,0.00014409,2]
[425872406,1782013842000,-298.83546561,0.00014408,2]
[425872402,1782013842000,-502.71171251,0.00014408,2]
[425872405,1782013842000,-250.0,0.00014408,2]
[425872403,1782013842000,-307.87652812,0.00014408,2]
[425872409,1782013842000,-500.0,0.00014506,2]
[425872420,1782013842000,-166.66,0.00015062,2]
[425872411,1782013842000,-305.60160948,0.00014517,2]
[425872419,1782013842000,-150.0,0.00015,2]
[425872412,1782013842000,-318.8340395,0.00014517,2]
[425872410,1782013842000,-7626.90669966,0.00014507,2]
[425872418,1782013842000,-4000.0,0.00014961,2]
[425872415,1782013842000,-4000.0,0.00014613,2]
[425872416,1782013842000,-166.66,0.00014751,2]
[425872417,1782013842000,-166.66,0.00014764,2]
[425872414,1782013842000,-37149.58,0.00014554,2]
[425872413,1782013842000,-300.0,0.00014517,2]
[425872421,1782013842000,-225.81,0.00015068,2]
[425872427,1782013842000,-3123.96602854,0.00015374,2]
[425872422,1782013842000,-849.37,0.000152,2]
[425872425,1782013842000,-4000.0,0.00015309,2]
[425872424,1782013842000,-150.0,0.00015253,2]
[425872408,1782013842000,-166.66,0.00014465,2]
[425872462,1782013842000,-274.0,0.00021,2]
[425872453,1782013842000,-913.0,0.0002,2]
[425872490,1782013842000,-160.0,0.00021364,2]
[425872500,1782013842000,-1959.96363872,0.000218,2]
[425872501,1782013842000,-168.55929479,0.000218,2]
[425872489,1782013842000,-500.0,0.000211,2]
[425872498,1782013842000,-168.55929479,0.000216,2]
[425872491,1782013842000,-160.0,0.00021366,2]
[425872499,1782013842000,-4788.23416601,0.000218,2]
[425872492,1782013842000,-150.88,0.00021369,2]
[425872493,1782013842000,-4788.23416601,0.000214,2]
[425872496,1782013842000,-4788.23416601,0.000216,2]
[425872495,1782013842000,-168.55929479,0.000214,2]
[425872494,1782013842000,-1959.96363872,0.000214,2]
[425872504,1782013842000,-500.0,0.00021832,2]
[425872502,1782013842000,-831.53404831,0.000218,2]
[425872503,1782013842000,-500.0,0.00021832,2]
[425872512,1782013842000,-4788.23416601,0.00022,2]
[425872508,1782013842000,-500.0,0.00021832,2]
[425872509,1782013842000,-161.13611769,0.00021832,2]
[425872511,1782013842000,-500.0,0.00022,3]
[425872506,1782013842000,-500.0,0.00021832,2]
[425872507,1782013842000,-500.0,0.00021832,2]
[425872505,1782013842000,-586.02764687,0.00021832,2]
[425872510,1782013842000,-5000.0,0.00021918,2]
[425872513,1782013842000,-1959.96363872,0.00022,2]
[425872457,1782013842000,-201.0,0.0002,2]
[425872488,1782013842000,-500.0,0.000211,2]
[425872477,1782013842000,-151.0,0.000211,2]
[425872497,1782013842000,-1959.96363872,0.000216,2]
[425872486,1782013842000,-500.0,0.000211,2]
[425872456,1782013842000,-193.0,0.0002,2]
[425872487,1782013842000,-500.0,0.000211,2]
[425872458,1782013842000,-150.29868404,0.0002058,2]
[425872460,1782013842000,-3315.45281836,0.00020849,2]
[425872461,1782013842000,-3123.96602854,0.00020872,2]
[425872459,1782013842000,-1065.68,0.00020593,2]
[425872475,1782013842000,-151.0,0.000211,2]
[425872465,1782013842000,-151.0,0.000211,2]
[425872470,1782013842000,-500.0,0.000211,2]
[425872466,1782013842000,-151.0,0.000211,2]
[425872467,1782013842000,-500.0,0.000211,2]
[425872473,1782013842000,-151.0,0.000211,2]
[425872469,1782013842000,-153.22252742,0.000211,2]
[425872468,1782013842000,-151.0,0.000211,2]
[425872485,1782013842000,-151.0,0.000211,2]
[425872484,1782013842000,-500.0,0.000211,2]
[425872472,1782013842000,-500.0,0.000211,2]
[425872482,1782013842000,-151.0,0.000211,2]
[425872479,1782013842000,-151.0,0.000211,2]
[425872481,1782013842000,-151.0,0.000211,2]
[425872478,1782013842000,-500.0,0.000211,2]
[425872483,1782013842000,-151.0,0.000211,2]
[425872476,1782013842000,-500.0,0.000211,2]
[425872464,1782013842000,-201.0,0.00021,2]
[425872471,1782013842000,-151.0,0.000211,2]
[425872474,1782013842000,-500.0,0.000211,2]
[425872480,1782013842000,-500.0,0.000211,2]
[425872561,1782013843000,-500.0,0.00022035,4]
[425872564,1782013843000,-457.30442964,0.00022035,4]
[425872558,1782013843000,-500.0,0.00022035,4]
[425872585,1782013843000,-4788.23416601,0.000225,2]
[425872560,1782013843000,-500.0,0.00022035,4]
[425872567,1782013843000,-500.0,0.00022035,4]
[425872559,1782013843000,-500.0,0.00022035,4]
[425872569,1782013843000,-500.0,0.00022035,4]
[425872556,1782013843000,-500.0,0.00022035,4]
[425872557,1782013843000,-500.0,0.00022035,4]
[425872565,1782013843000,-500.0,0.00022035,4]
[425872562,1782013843000,-500.0,0.00022035,4]
[425872563,1782013843000,-500.0,0.00022035,4]
[425872581,1782013843000,-292.15128871,0.00022042,2]
[425872571,1782013843000,-500.0,0.00022035,4]
[425872574,1782013843000,-500.0,0.00022035,4]
[425872575,1782013843000,-500.0,0.00022035,4]
[425872583,1782013843000,-4788.23416601,0.000222,2]
[425872582,1782013843000,-1000.0,0.00022047,2]
[425872579,1782013843000,-208.95657455,0.00022035,4]
[425872572,1782013843000,-500.0,0.00022035,4]
[425872576,1782013843000,-549.68177629,0.00022035,4]
[425872580,1782013843000,-172.53233442,0.00022035,4]
[425872578,1782013843000,-150.0,0.00022035,4]
[425872577,1782013843000,-150.0,0.00022035,4]
[425872555,1782013843000,-500.0,0.00022035,4]
[425872573,1782013843000,-501.44261121,0.00022035,4]
[425872554,1782013843000,-500.0,0.00022035,4]
[425872516,1782013843000,-201.0,0.00022,2]
[425872552,1782013843000,-257.35529707,0.00022035,4]
[425872514,1782013843000,-274.0,0.00022,2]
[425872522,1782013843000,-500.0,0.00022035,4]
[425872518,1782013843000,-150.0,0.00022,2]
[425872515,1782013843000,-193.0,0.00022,2]
[425872517,1782013843000,-1157.65,0.00022,2]
[425872519,1782013843000,-500.0,0.00022035,4]
[425872520,1782013843000,-500.0,0.00022035,4]
[425872521,1782013843000,-500.0,0.00022035,4]
[425872524,1782013843000,-500.0,0.00022035,4]
[425872535,1782013843000,-500.0,0.00022035,4]
[425872525,1782013843000,-500.0,0.00022035,4]
[425872527,1782013843000,-500.0,0.00022035,4]
[425872528,1782013843000,-500.0,0.00022035,4]
[425872526,1782013843000,-500.0,0.00022035,4]
[425872530,1782013843000,-500.0,0.00022035,4]
[425872523,1782013843000,-500.0,0.00022035,4]
[425872529,1782013843000,-501.31164154,0.00022035,4]
[425872531,1782013843000,-500.0,0.00022035,4]
[425872532,1782013843000,-500.0,0.00022035,4]
[425872533,1782013843000,-500.0,0.00022035,4]
[425872542,1782013843000,-500.0,0.00022035,4]
[425872550,1782013843000,-500.0,0.00022035,4]
[425872545,1782013843000,-339.68722958,0.00022035,4]
[425872541,1782013843000,-150.0,0.00022035,4]
[425872546,1782013843000,-150.0,0.00022035,4]
[425872540,1782013843000,-500.0,0.00022035,4]
[425872543,1782013843000,-150.0,0.00022035,4]
[425872538,1782013843000,-500.0,0.00022035,4]
[425872584,1782013843000,-1959.96363872,0.000222,2]
[425872602,1782013843000,-150.99,0.00023368,2]
[425872586,1782013843000,-5529.0,0.000225,3]
[425872615,1782013843000,-280.64181873,0.00025,2]
[425872621,1782013843000,-3647.0,0.00025235,2]
[425872625,1782013843000,-10439.89,0.00025786,2]
[425872630,1782013843000,-3123.96602854,0.0002637,2]
[425872628,1782013843000,-151.0,0.00026296,2]
[425872623,1782013843000,-464.92284466,0.00025481,7]
[425872631,1782013843000,-160.22098487,0.0002663,7]
[425872629,1782013843000,-3315.45281836,0.00026361,2]
[425872622,1782013843000,-6081.0,0.00025235,2]
[425872624,1782013843000,-190.99,0.00025578,120]
[425872627,1782013843000,-150.0,0.00026093,2]
[425872632,1782013843000,-226.22674268,0.0002663,7]
[425872617,1782013843000,-218.0624543,0.00025,2]
[425872626,1782013843000,-160.21816507,0.00026027,2]
[425872640,1782013843000,-163.1794203,0.0002663,7]
[425872635,1782013843000,-151.15090378,0.0002663,7]
[425872636,1782013843000,-150.0,0.0002663,7]
[425872634,1782013843000,-153.7434965,0.0002663,7]
[425872645,1782013843000,-158.35051919,0.00027397,2]
[425872639,1782013843000,-177.73769565,0.0002663,7]
[425872638,1782013843000,-150.0,0.0002663,7]
[425872642,1782013843000,-500.0,0.0002678,2]
[425872644,1782013843000,-5096.96724054,0.00026919,2]
[425872637,1782013843000,-151.62881916,0.0002663,7]
[425872643,1782013843000,-500.0,0.0002678,2]
[425872594,1782013843000,-193.0,0.00023,2]
[425872633,1782013843000,-258.40569733,0.0002663,7]
[425872612,1782013843000,-171.38,0.00024658,2]
[425872641,1782013843000,-500.0,0.0002678,2]
[425872614,1782013843000,-150.0,0.0002485,2]
[425872616,1782013843000,-202.37722799,0.00025,2]
[425872587,1782013843000,-150.0,0.0002254,2]
[425872591,1782013843000,-4788.23416601,0.000229,2]
[425872592,1782013843000,-5529.0,0.000229,5]
[425872590,1782013843000,-3123.96602854,0.00022705,2]
[425872593,1782013843000,-274.0,0.00023,2]
[425872589,1782013843000,-4788.23416601,0.000227,2]
[425872595,1782013843000,-201.0,0.00023,2]
[425872607,1782013843000,-201.0,0.00024,2]
[425872606,1782013843000,-193.0,0.00024,2]
[425872600,1782013843000,-5176.56,0.00023368,2]
[425872596,1782013843000,-249.0,0.00023099,2]
[425872601,1782013843000,-3337.05,0.00023368,2]
[425872588,1782013843000,-3315.45281836,0.00022687,2]
[425872598,1782013843000,-300.1,0.00023368,2]
[425872597,1782013843000,-4788.23416601,0.000231,2]
[425872618,1782013843000,-610.51,0.00025225,2]
[425872610,1782013843000,-3123.96602854,0.00024538,2]
[425872608,1782013843000,-183.29,0.000245,14]
[425872620,1782013843000,-384.0,0.00025235,2]
[425872611,1782013843000,-1000.0,0.00024658,2]
[425872609,1782013843000,-3315.45281836,0.00024524,2]
[425872599,1782013843000,-190.71,0.00023368,7]
[425872619,1782013843000,-3566.944,0.00025235,2]
[425872605,1782013843000,-274.0,0.00024,2]
[425872613,1782013843000,-194.64,0.00024658,2]
[425872603,1782013843000,-4788.23416601,0.000234,2]
[425872604,1782013843000,-150.0,0.00023667,2]
[425872685,1782013844000,-156.19550625,0.00028518,2]
[425872673,1782013844000,-152.0,0.00028518,2]
[425872677,1782013844000,-155.50750776,0.00028518,2]
[425872679,1782013844000,-214.43537924,0.00028518,2]
[425872680,1782013844000,-500.0,0.00028518,2]
[425872681,1782013844000,-201.93286098,0.00028518,2]
[425872689,1782013844000,-150.0,0.00028767,2]
[425872682,1782013844000,-159.30253989,0.00028518,2]
[425872690,1782013844000,-157.0,0.00028866,30]
[425872674,1782013844000,-159.78287953,0.00028518,2]
[425872678,1782013844000,-205.51479227,0.00028518,2]
[425872683,1782013844000,-9211.34798984,0.00028518,2]
[425872684,1782013844000,-679.30068114,0.00028518,2]
[425872686,1782013844000,-158.6060324,0.00028518,2]
[425872691,1782013844000,-155.0,0.00028866,30]
[425872692,1782013844000,-155.0,0.00028866,30]
[425872687,1782013844000,-204.2244487,0.00028518,2]
[425872694,1782013844000,-201.0,0.00028866,30]
[425872707,1782013844000,-209291.11617421,0.00029007,2]
[425872706,1782013844000,-1500.0,0.00028952,10]
[425872696,1782013844000,-274.0,0.00028867,30]
[425872671,1782013844000,-705.09722233,0.00028518,2]
[425872695,1782013844000,-154.0,0.00028866,30]
[425872688,1782013844000,-158.35051919,0.00028766,2]
[425872672,1782013844000,-204.08405477,0.00028518,2]
[425872652,1782013844000,-155.17102467,0.00027466,3]
[425872665,1782013844000,-6081.0,0.00028235,2]
[425872704,1782013844000,-1123.45,0.000289,30]
[425872646,1782013844000,-242.80920957,0.00027397,2]
[425872648,1782013844000,-150.0,0.00027398,2]
[425872649,1782013844000,-1036.11,0.000274,7]
[425872647,1782013844000,-3504.31,0.00027397,10]
[425872650,1782013844000,-1694.16,0.000274,7]
[425872653,1782013844000,-189.0,0.000275,7]
[425872657,1782013844000,-240.27,0.00027575,30]
[425872654,1782013844000,-500.0,0.000275,7]
[425872655,1782013844000,-189.62,0.00027572,30]
[425872651,1782013844000,-201.57497821,0.00027466,3]
[425872656,1782013844000,-357.0,0.00027573,10]
[425872659,1782013844000,-500.0,0.00027999,2]
[425872669,1782013844000,-206.46620866,0.00028518,2]
[425872670,1782013844000,-157.20998941,0.00028518,2]
[425872668,1782013844000,-164.20079939,0.00028518,2]
[425872663,1782013844000,-3123.96602854,0.00028203,2]
[425872667,1782013844000,-14061.7792572,0.00028419,2]
[425872658,1782013844000,-207.09,0.00027581,30]
[425872660,1782013844000,-16592.9135163,0.00028,2]
[425872664,1782013844000,-3647.0,0.00028235,2]
[425872662,1782013844000,-3315.45281836,0.00028199,2]
[425872661,1782013844000,-298.5,0.00028099,2]
[425872666,1782013844000,-151.0,0.00028267,2]
[425872693,1782013844000,-153.0,0.00028866,30]
[425872698,1782013844000,-151.0,0.00028867,30]
[425872697,1782013844000,-156.0,0.00028867,30]
[425872730,1782013844000,-165.35656663,0.00029489,2]
[425872743,1782013844000,-500.0,0.00029588,2]
[425872736,1782013844000,-500.0,0.00029499,2]
[425872733,1782013844000,-500.0,0.00029499,2]
[425872735,1782013844000,-500.0,0.00029499,2]
[425872734,1782013844000,-500.0,0.00029499,2]
[425872745,1782013844000,-500.0,0.00029588,2]
[425872738,1782013844000,-500.0,0.00029588,2]
[425872742,1782013844000,-500.0,0.00029588,2]
[425872741,1782013844000,-500.0,0.00029588,2]
[425872740,1782013844000,-500.0,0.00029588,2]
[425872739,1782013844000,-500.0,0.00029588,2]
[425872744,1782013844000,-500.0,0.00029588,2]
[425872747,1782013844000,-500.0,0.00029588,2]
[425872749,1782013844000,-500.0,0.00029588,2]
[425872748,1782013844000,-500.0,0.00029588,2]
[425872746,1782013844000,-500.0,0.00029588,2]
[425872752,1782013844000,-610.51,0.00029588,2]
[425872750,1782013844000,-500.0,0.00029588,2]
[425872755,1782013844000,-604.90304125,0.00029588,2]
[425872751,1782013844000,-208.32,0.00029588,2]
[425872753,1782013844000,-610.51,0.00029588,2]
[425872754,1782013844000,-610.51,0.00029588,2]
[425872729,1782013844000,-610.51,0.00029488,2]
[425872723,1782013844000,-610.51,0.00029488,2]
[425872737,1782013844000,-213.36485972,0.00029579,2]
[425872722,1782013844000,-610.51,0.00029488,2]
[425872727,1782013844000,-610.51,0.00029488,2]
[425872700,1782013844000,-1036.11,0.000289,7]
[425872702,1782013844000,-1694.16,0.000289,7]
[425872699,1782013844000,-193.0,0.00028867,30]
[425872708,1782013844000,-159.78287953,0.00029066,2]
[425872710,1782013844000,-800.0,0.00029315,5]
[425872711,1782013844000,-800.0,0.00029315,5]
[425872718,1782013844000,-500.0,0.00029488,2]
[425872719,1782013844000,-509.03583358,0.00029488,2]
[425872709,1782013844000,-836.73517227,0.00029066,2]
[425872714,1782013844000,-511.08149095,0.0002937,2]
[425872716,1782013844000,-502.63850258,0.00029488,2]
[425872712,1782013844000,-800.0,0.00029315,5]
[425872715,1782013844000,-500.0,0.0002937,2]
[425872713,1782013844000,-267.11747935,0.00029315,5]
[425872717,1782013844000,-505.66267343,0.00029488,2]
[425872721,1782013844000,-610.51,0.00029488,2]
[425872731,1782013844000,-202.89120612,0.00029489,2]
[425872732,1782013844000,-10000.0,0.00029489,2]
[425872720,1782013844000,-610.51,0.00029488,2]
[425872725,1782013844000,-610.51,0.00029488,2]
[425872724,1782013844000,-610.51,0.00029488,2]
[425872728,1782013844000,-610.51,0.00029488,2]
[425872726,1782013844000,-610.51,0.00029488,2]